[Event "Titled Tuesday Blitz March 14 Early 2023"]
[White "Wei, Yi"]
[Black "Rustemov, Alexander"]
[WhiteFideId "8603405"]
[BlackFideId "4119002"]
[WhiteElo "2686"]
[BlackElo "2931"]
[Result "1-0"]
[Round "09"]
[TimeControl "180+2"]
[Date "2023.03.14"]
[WhiteClock "0:00:12"]
[BlackClock "0:00:02"]

1. b3 {[%clk 0:02:55]}  d5 {[%clk 0:02:59]} 2. Bb2 {[%clk 0:02:54]}  Nf6 {[%clk 0:03:00]} 3. e3 {[%clk 0:02:53]}  Bf5 {[%clk 0:03:00]} 4. Be2 {[%clk 0:02:50]}  e6 {[%clk 0:02:57]} 5. Nf3 {[%clk 0:02:46]}  h6 {[%clk 0:02:57]} 6. h3 {[%clk 0:02:43]}  Be7 {[%clk 0:02:57]} 7. d3 {[%clk 0:02:43]}  Nbd7 {[%clk 0:02:51]} 8. Nbd2 {[%clk 0:02:43]}  c6 {[%clk 0:02:48]} 9. a3 {[%clk 0:02:36]}  a5 {[%clk 0:02:47]} 10. c4 {[%clk 0:02:34]}  Bd6 {[%clk 0:02:45]} 11. Qc2 {[%clk 0:02:29]}  Qe7 {[%clk 0:02:45]} 12. g4 {[%clk 0:02:08]}  Bg6 {[%clk 0:02:42]} 13. Rg1 {[%clk 0:02:06]}  e5 {[%clk 0:02:39]} 14. Nh4 {[%clk 0:02:03]}  O-O {[%clk 0:02:36]} 15. g5 {[%clk 0:01:51]}  hxg5 {[%clk 0:02:27]} 16. Nxg6 {[%clk 0:01:51]}  fxg6 {[%clk 0:02:27]} 17. Rxg5 {[%clk 0:01:51]}  Qf7 {[%clk 0:02:04]} 18. O-O-O {[%clk 0:01:49]}  Nh7 {[%clk 0:01:56]} 19. Rg2 {[%clk 0:01:48]}  g5 {[%clk 0:01:44]} 20. Rdg1 {[%clk 0:01:35]}  Qe7 {[%clk 0:01:44]} 21. h4 {[%clk 0:01:35]}  Bxa3 {[%clk 0:01:41]} 22. hxg5 {[%clk 0:01:31]}  g6 {[%clk 0:01:37]} 23. Bxa3 {[%clk 0:01:11]}  Qxa3+ {[%clk 0:01:37]} 24. Qb2 {[%clk 0:01:12]}  Qe7 {[%clk 0:01:31]} 25. Kb1 {[%clk 0:00:55]}  a4 {[%clk 0:01:31]} 26. b4 {[%clk 0:00:51]}  a3 {[%clk 0:01:31]} 27. Qb3 {[%clk 0:00:52]}  Kg7 {[%clk 0:01:18]} 28. Ka2 {[%clk 0:00:48]}  Nb6 {[%clk 0:01:07]} 29. Rb1 {[%clk 0:00:42]}  Rf5 {[%clk 0:01:02]} 30. Bg4 {[%clk 0:00:39]}  Rf7 {[%clk 0:00:59]} 31. Rh1 {[%clk 0:00:35]}  Nxg5 {[%clk 0:00:57]} 32. Rhg1 {[%clk 0:00:34]}  dxc4 {[%clk 0:00:55]} 33. Nxc4 {[%clk 0:00:26]}  Nd5 {[%clk 0:00:54]} 34. Be2 {[%clk 0:00:25]}  Qxb4 {[%clk 0:00:50]} 35. Qxb4 {[%clk 0:00:19]}  Nxb4+ {[%clk 0:00:51]} 36. Kb3 {[%clk 0:00:20]}  a2 {[%clk 0:00:46]} 37. Rxg5 {[%clk 0:00:13]}  a1=Q {[%clk 0:00:38]} 38. Rxa1 {[%clk 0:00:13]}  Rxa1 {[%clk 0:00:38]} 39. Kxb4 {[%clk 0:00:14]}  Rxf2 {[%clk 0:00:37]} 40. Bg4 {[%clk 0:00:11]}  Kf6 {[%clk 0:00:37]} 41. Rxe5 {[%clk 0:00:10]}  Rb1+ {[%clk 0:00:21]} 42. Kc3 {[%clk 0:00:10]}  Rc1+ {[%clk 0:00:19]} 43. Kd4 {[%clk 0:00:11]}  b5 {[%clk 0:00:08]} 44. Nd6 {[%clk 0:00:11]}  c5+ {[%clk 0:00:07]} 45. Kd5 {[%clk 0:00:11]}  b4 {[%clk 0:00:06]} 46. Ne4+ {[%clk 0:00:11]}  Kg7 {[%clk 0:00:06]} 47. Nxf2 {[%clk 0:00:12]}  b3 {[%clk 0:00:06]} 48. Re7+ {[%clk 0:00:12]}  Kh6 {[%clk 0:00:06]} 49. Rb7 {[%clk 0:00:13]}  Rc3 {[%clk 0:00:04]} 50. Bd1 {[%clk 0:00:12]}  c4 {[%clk 0:00:04]} 51. Kd4 {[%clk 0:00:12]}  Rc1 {[%clk 0:00:03]} 52. dxc4 {[%clk 0:00:12]}  g5 {[%clk 0:00:02]} 53. Rxb3 {[%clk 0:00:12]}  g4 {[%clk 0:00:03]} 54. Nxg4+ {[%clk 0:00:13]}  Kg5 {[%clk 0:00:03]} 55. Nf2 {[%clk 0:00:13]}  Kh4 {[%clk 0:00:03]} 56. e4 {[%clk 0:00:12]}  Kg5 {[%clk 0:00:02]} 57. Rg3+ {[%clk 0:00:12]}  Kf4 {[%clk 0:00:02]} 58. Rg4# {[%clk 0:00:12]} 1-0


[Site "https://www.chess.com"]

[Event "Titled Tuesday Blitz March 14 Early 2023"]
[White "Sarana, Alexey"]
[Black "Urazayev, Arystanbek"]
[WhiteFideId "24133795"]
[BlackFideId "13709810"]
[WhiteElo "2714"]
[BlackElo "2479"]
[Result "0-1"]
[Round "09"]
[TimeControl "180+2"]
[Date "2023.03.14"]
[WhiteClock "0:00:18"]
[BlackClock "0:00:32"]

1. c4 {[%clk 0:02:07]}  e6 {[%clk 0:02:59]} 2. Nc3 {[%clk 0:02:07]}  d5 {[%clk 0:02:59]} 3. d4 {[%clk 0:02:08]}  Nf6 {[%clk 0:03:00]} 4. Nf3 {[%clk 0:02:08]}  Nbd7 {[%clk 0:02:56]} 5. Qc2 {[%clk 0:02:05]}  c6 {[%clk 0:02:56]} 6. e3 {[%clk 0:01:58]}  Bd6 {[%clk 0:02:56]} 7. Bd3 {[%clk 0:01:57]}  dxc4 {[%clk 0:02:55]} 8. Bxc4 {[%clk 0:01:58]}  b5 {[%clk 0:02:55]} 9. Be2 {[%clk 0:01:58]}  Bb7 {[%clk 0:02:51]} 10. O-O {[%clk 0:01:58]}  O-O {[%clk 0:02:51]} 11. e4 {[%clk 0:01:58]}  e5 {[%clk 0:02:51]} 12. dxe5 {[%clk 0:01:59]}  Nxe5 {[%clk 0:02:52]} 13. Nd4 {[%clk 0:01:59]}  b4 {[%clk 0:02:44]} 14. Na4 {[%clk 0:01:58]}  c5 {[%clk 0:02:43]} 15. Nxc5 {[%clk 0:01:56]}  Bxc5 {[%clk 0:01:40]} 16. Qxc5 {[%clk 0:01:57]}  Re8 {[%clk 0:01:40]} 17. Qxb4 {[%clk 0:01:51]}  Bxe4 {[%clk 0:01:39]} 18. Bf4 {[%clk 0:01:50]}  Nd5 {[%clk 0:01:36]} 19. Qd2 {[%clk 0:01:42]}  Nxf4 {[%clk 0:01:36]} 20. Qxf4 {[%clk 0:01:43]}  Qxd4 {[%clk 0:01:36]} 21. Rad1 {[%clk 0:01:43]}  Qxb2 {[%clk 0:01:29]} 22. Rfe1 {[%clk 0:01:11]}  Ng6 {[%clk 0:01:25]} 23. Qg3 {[%clk 0:01:09]}  Qxa2 {[%clk 0:01:18]} 24. Bb5 {[%clk 0:01:07]}  Red8 {[%clk 0:01:11]} 25. Rxd8+ {[%clk 0:01:02]}  Rxd8 {[%clk 0:01:12]} 26. Qc7 {[%clk 0:00:53]}  Rf8 {[%clk 0:01:12]} 27. Bc4 {[%clk 0:00:49]}  Qd2 {[%clk 0:01:07]} 28. Ra1 {[%clk 0:00:47]}  Qg5 {[%clk 0:00:56]} 29. g3 {[%clk 0:00:47]}  Qg4 {[%clk 0:00:55]} 30. Ra3 {[%clk 0:00:34]}  Qd1+ {[%clk 0:00:53]} 31. Bf1 {[%clk 0:00:35]}  h6 {[%clk 0:00:43]} 32. h4 {[%clk 0:00:32]}  Bf5 {[%clk 0:00:40]} 33. Qc3 {[%clk 0:00:24]}  Rc8 {[%clk 0:00:36]} 34. Qa5 {[%clk 0:00:18]}  Rc1 {[%clk 0:00:32]} 0-1


[Site "https://www.chess.com"]

[Event "Titled Tuesday Blitz March 14 Early 2023"]
[White "Rohith Krishna S"]
[Black "Nguyen, Ngoc Truong Son"]
[WhiteFideId "46617051"]
[BlackFideId "12401110"]
[WhiteElo "2270"]
[BlackElo "2571"]
[Result "1/2-1/2"]
[Round "09"]
[TimeControl "180+2"]
[Date "2023.03.14"]
[WhiteClock "0:01:04"]
[BlackClock "0:00:09"]

1. d4 {[%clk 0:03:00]}  Nf6 {[%clk 0:02:58]} 2. c4 {[%clk 0:03:00]}  g6 {[%clk 0:02:59]} 3. Nc3 {[%clk 0:02:56]}  Bg7 {[%clk 0:02:59]} 4. e4 {[%clk 0:02:56]}  d6 {[%clk 0:03:00]} 5. f4 {[%clk 0:02:57]}  O-O {[%clk 0:03:00]} 6. Nf3 {[%clk 0:02:57]}  c5 {[%clk 0:02:59]} 7. d5 {[%clk 0:02:57]}  e6 {[%clk 0:03:00]} 8. Bd3 {[%clk 0:02:57]}  exd5 {[%clk 0:03:00]} 9. cxd5 {[%clk 0:02:57]}  Re8 {[%clk 0:02:54]} 10. O-O {[%clk 0:02:57]}  c4 {[%clk 0:02:48]} 11. Bc2 {[%clk 0:02:56]}  b5 {[%clk 0:02:48]} 12. e5 {[%clk 0:02:54]}  Ng4 {[%clk 0:02:38]} 13. e6 {[%clk 0:02:53]}  fxe6 {[%clk 0:02:35]} 14. dxe6 {[%clk 0:02:54]}  Bxe6 {[%clk 0:02:11]} 15. Ng5 {[%clk 0:02:52]}  Qb6+ {[%clk 0:02:09]} 16. Kh1 {[%clk 0:02:52]}  Nf2+ {[%clk 0:02:09]} 17. Rxf2 {[%clk 0:02:53]}  Qxf2 {[%clk 0:02:10]} 18. h3 {[%clk 0:02:13]}  Na6 {[%clk 0:02:03]} 19. Be4 {[%clk 0:02:10]}  Rad8 {[%clk 0:01:43]} 20. Nxe6 {[%clk 0:02:04]}  Rxe6 {[%clk 0:01:44]} 21. Bd5 {[%clk 0:02:05]}  Nc7 {[%clk 0:01:44]} 22. Bxe6+ {[%clk 0:01:59]}  Nxe6 {[%clk 0:01:45]} 23. Qd5 {[%clk 0:01:57]}  Qe1+ {[%clk 0:01:22]} 24. Kh2 {[%clk 0:01:56]}  Bd4 {[%clk 0:01:22]} 25. Bd2 {[%clk 0:01:57]}  Qxd2 {[%clk 0:01:01]} 26. Qxe6+ {[%clk 0:01:48]}  Kh8 {[%clk 0:01:01]} 27. Nd5 {[%clk 0:01:48]}  Bg7 {[%clk 0:00:21]} 28. Re1 {[%clk 0:01:46]}  Rf8 {[%clk 0:00:18]} 29. Re2 {[%clk 0:01:33]}  Qd3 {[%clk 0:00:16]} 30. Re3 {[%clk 0:01:20]}  Qf5 {[%clk 0:00:11]} 31. Qxd6 {[%clk 0:01:20]}  Bxb2 {[%clk 0:00:11]} 32. Re7 {[%clk 0:01:16]}  Bg7 {[%clk 0:00:10]} 33. Qc7 {[%clk 0:01:14]}  Rg8 {[%clk 0:00:10]} 34. Ne3 {[%clk 0:01:12]}  Qf8 {[%clk 0:00:08]} 35. g3 {[%clk 0:01:07]}  Qd8 {[%clk 0:00:06]} 36. Qxa7 {[%clk 0:01:05]}  Qd2+ {[%clk 0:00:06]} 37. Ng2 {[%clk 0:01:04]}  c3 {[%clk 0:00:06]} 38. Rd7 {[%clk 0:01:04]}  Qe2 {[%clk 0:00:05]} 39. Re7 {[%clk 0:01:04]}  Qb2 {[%clk 0:00:05]} 40. Rxg7 {[%clk 0:01:02]}  Rxg7 {[%clk 0:00:06]} 41. Qb8+ {[%clk 0:01:01]}  Rg8 {[%clk 0:00:07]} 42. Qe5+ {[%clk 0:01:02]}  Rg7 {[%clk 0:00:07]} 43. Qe8+ {[%clk 0:01:02]}  Rg8 {[%clk 0:00:08]} 44. Qe5+ {[%clk 0:01:03]}  Rg7 {[%clk 0:00:09]} 45. Qe8+ {[%clk 0:01:04]}  Rg8 {[%clk 0:00:09]} 46. Qe5+ {[%clk 0:01:04]} 1/2-1/2


[Site "https://www.chess.com"]

[Event "Titled Tuesday Blitz March 14 Early 2023"]
[White "Makhnev, Denis"]
[Black "Csonka, Balazs"]
[WhiteFideId "13707647"]
[BlackFideId "742910"]
[WhiteElo "2525"]
[BlackElo "2404"]
[Result "1-0"]
[Round "09"]
[TimeControl "180+2"]
[Date "2023.03.14"]
[WhiteClock "0:00:07"]
[BlackClock "0:00:01"]

1. d4 {[%clk 0:03:00]}  Nf6 {[%clk 0:02:58]} 2. c4 {[%clk 0:03:00]}  e6 {[%clk 0:02:56]} 3. Nf3 {[%clk 0:03:00]}  Bb4+ {[%clk 0:02:54]} 4. Bd2 {[%clk 0:03:00]}  a5 {[%clk 0:02:54]} 5. a3 {[%clk 0:02:59]}  Bxd2+ {[%clk 0:02:54]} 6. Qxd2 {[%clk 0:03:00]}  O-O {[%clk 0:02:52]} 7. Nc3 {[%clk 0:03:01]}  d5 {[%clk 0:02:50]} 8. e3 {[%clk 0:03:00]}  c6 {[%clk 0:02:48]} 9. Bd3 {[%clk 0:02:58]}  Nbd7 {[%clk 0:02:47]} 10. O-O {[%clk 0:02:58]}  b6 {[%clk 0:02:40]} 11. cxd5 {[%clk 0:02:56]}  cxd5 {[%clk 0:02:38]} 12. Rfc1 {[%clk 0:02:53]}  Bb7 {[%clk 0:02:27]} 13. Nb5 {[%clk 0:02:52]}  Ne4 {[%clk 0:02:23]} 14. Qd1 {[%clk 0:02:44]}  Rc8 {[%clk 0:01:31]} 15. Ne5 {[%clk 0:02:11]}  Nxe5 {[%clk 0:01:09]} 16. dxe5 {[%clk 0:02:12]}  Ba6 {[%clk 0:01:08]} 17. Nd4 {[%clk 0:01:43]}  Bxd3 {[%clk 0:01:03]} 18. Qxd3 {[%clk 0:01:43]}  Qd7 {[%clk 0:00:55]} 19. Qa6 {[%clk 0:01:36]}  Nc5 {[%clk 0:00:27]} 20. Qxb6 {[%clk 0:01:14]}  Nd3 {[%clk 0:00:28]} 21. Rxc8 {[%clk 0:01:14]}  Rxc8 {[%clk 0:00:28]} 22. Qxa5 {[%clk 0:01:15]}  Nxb2 {[%clk 0:00:26]} 23. f4 {[%clk 0:00:31]}  Nc4 {[%clk 0:00:18]} 24. Qe1 {[%clk 0:00:31]}  Ra8 {[%clk 0:00:16]} 25. Qc3 {[%clk 0:00:29]}  g6 {[%clk 0:00:16]} 26. h3 {[%clk 0:00:26]}  Ra4 {[%clk 0:00:16]} 27. Kh2 {[%clk 0:00:27]}  Qa7 {[%clk 0:00:15]} 28. Nc2 {[%clk 0:00:27]}  h5 {[%clk 0:00:16]} 29. g4 {[%clk 0:00:23]}  hxg4 {[%clk 0:00:17]} 30. hxg4 {[%clk 0:00:24]}  Kg7 {[%clk 0:00:17]} 31. Kg3 {[%clk 0:00:24]}  Ra5 {[%clk 0:00:15]} 32. f5 {[%clk 0:00:17]}  Qc7 {[%clk 0:00:12]} 33. f6+ {[%clk 0:00:15]}  Kg8 {[%clk 0:00:12]} 34. Rb1 {[%clk 0:00:14]}  Rc5 {[%clk 0:00:11]} 35. Qd4 {[%clk 0:00:05]}  Nxe5 {[%clk 0:00:09]} 36. Ne1 {[%clk 0:00:04]}  Nd3+ {[%clk 0:00:07]} 37. Kf3 {[%clk 0:00:02]}  Ne5+ {[%clk 0:00:07]} 38. Ke2 {[%clk 0:00:02]}  Rc2+ {[%clk 0:00:07]} 39. Kd1 {[%clk 0:00:01]}  Rc4 {[%clk 0:00:06]} 40. Qd2 {[%clk 0:00:01]}  Nxg4 {[%clk 0:00:06]} 41. Rb4 {[%clk 0:00:02]}  Nxf6 {[%clk 0:00:05]} 42. Nd3 {[%clk 0:00:03]}  Ne4 {[%clk 0:00:04]} 43. Qg2 {[%clk 0:00:03]}  Rxb4 {[%clk 0:00:04]} 44. axb4 {[%clk 0:00:03]}  Qc3 {[%clk 0:00:04]} 45. Qc2 {[%clk 0:00:04]}  Qxd3+ {[%clk 0:00:03]} 46. Qxd3 {[%clk 0:00:03]}  Nf2+ {[%clk 0:00:03]} 47. Ke2 {[%clk 0:00:04]}  Nxd3 {[%clk 0:00:01]} 48. Kxd3 {[%clk 0:00:05]}  Kf8 {[%clk 0:00:01]} 49. Kd4 {[%clk 0:00:06]}  Ke7 {[%clk 0:00:01]} 50. Kc5 {[%clk 0:00:07]} 1-0


[Site "https://www.chess.com"]

[Event "Titled Tuesday Blitz March 14 Early 2023"]
[White "Zhigalko, Sergei"]
[Black "Papasimakopoulos, Alexandros"]
[WhiteFideId "13502956"]
[BlackFideId "4244125"]
[WhiteElo "2626"]
[BlackElo "2359"]
[Result "1/2-1/2"]
[Round "09"]
[TimeControl "180+2"]
[Date "2023.03.14"]
[WhiteClock "0:00:02"]
[BlackClock "0:00:44"]

1. e4 {[%clk 0:03:00]}  e6 {[%clk 0:02:55]} 2. d4 {[%clk 0:03:01]}  d5 {[%clk 0:02:56]} 3. e5 {[%clk 0:03:01]}  a6 {[%clk 0:02:56]} 4. Nf3 {[%clk 0:03:00]}  Bd7 {[%clk 0:02:56]} 5. c3 {[%clk 0:02:57]}  Bb5 {[%clk 0:02:56]} 6. Bxb5+ {[%clk 0:02:56]}  axb5 {[%clk 0:02:57]} 7. O-O {[%clk 0:02:57]}  b4 {[%clk 0:02:55]} 8. cxb4 {[%clk 0:02:31]}  Bxb4 {[%clk 0:02:54]} 9. a3 {[%clk 0:02:31]}  Be7 {[%clk 0:02:46]} 10. Nc3 {[%clk 0:02:31]}  b6 {[%clk 0:02:28]} 11. Bf4 {[%clk 0:02:18]}  c5 {[%clk 0:02:28]} 12. Nb5 {[%clk 0:02:04]}  Nc6 {[%clk 0:02:20]} 13. Qe2 {[%clk 0:02:00]}  g5 {[%clk 0:02:09]} 14. Be3 {[%clk 0:01:51]}  g4 {[%clk 0:02:08]} 15. Ne1 {[%clk 0:01:40]}  h5 {[%clk 0:02:08]} 16. Nd3 {[%clk 0:01:40]}  cxd4 {[%clk 0:02:05]} 17. Rac1 {[%clk 0:01:09]}  Rc8 {[%clk 0:01:59]} 18. Bxd4 {[%clk 0:01:09]}  Nh6 {[%clk 0:01:53]} 19. Be3 {[%clk 0:00:32]}  Nf5 {[%clk 0:01:53]} 20. Rc2 {[%clk 0:00:31]}  Na5 {[%clk 0:01:46]} 21. Rxc8 {[%clk 0:00:22]}  Qxc8 {[%clk 0:01:46]} 22. Bxb6 {[%clk 0:00:22]}  Nc4 {[%clk 0:01:41]} 23. Bd4 {[%clk 0:00:15]}  O-O {[%clk 0:01:36]} 24. a4 {[%clk 0:00:14]}  Qa6 {[%clk 0:01:28]} 25. b3 {[%clk 0:00:13]}  Na5 {[%clk 0:01:28]} 26. Qb2 {[%clk 0:00:09]}  Nxd4 {[%clk 0:01:24]} 27. Qxd4 {[%clk 0:00:08]}  Nxb3 {[%clk 0:01:24]} 28. Qf4 {[%clk 0:00:05]}  Rc8 {[%clk 0:01:11]} 29. Qh6 {[%clk 0:00:03]}  Qxa4 {[%clk 0:01:09]} 30. Nf4 {[%clk 0:00:03]}  Qe4 {[%clk 0:00:55]} 31. Nd6 {[%clk 0:00:03]}  Qxe5 {[%clk 0:00:51]} 32. Nxc8 {[%clk 0:00:02]}  Bg5 {[%clk 0:00:48]} 33. Qxh5 {[%clk 0:00:02]}  Bxf4 {[%clk 0:00:49]} 34. Qxe5 {[%clk 0:00:01]}  Bxe5 {[%clk 0:00:50]} 35. Ne7+ {[%clk 0:00:02]}  Kf8 {[%clk 0:00:50]} 36. Nc6 {[%clk 0:00:03]}  Bf6 {[%clk 0:00:48]} 37. Rb1 {[%clk 0:00:03]}  Nd2 {[%clk 0:00:48]} 38. Rd1 {[%clk 0:00:02]}  Ne4 {[%clk 0:00:47]} 39. Kf1 {[%clk 0:00:02]}  Nc3 {[%clk 0:00:46]} 40. Ra1 {[%clk 0:00:01]}  Ne4 {[%clk 0:00:47]} 41. Ra7 {[%clk 0:00:02]}  Kg7 {[%clk 0:00:47]} 42. g3 {[%clk 0:00:01]}  Kg6 {[%clk 0:00:47]} 43. Ra4 {[%clk 0:00:02]}  Kg7 {[%clk 0:00:46]} 44. Kg2 {[%clk 0:00:02]}  Kg6 {[%clk 0:00:46]} 45. Nb8 {[%clk 0:00:02]}  Be5 {[%clk 0:00:46]} 46. Nc6 {[%clk 0:00:02]}  Bf6 {[%clk 0:00:46]} 47. Ra5 {[%clk 0:00:02]}  Bc3 {[%clk 0:00:46]} 48. Ra4 {[%clk 0:00:02]}  Bf6 {[%clk 0:00:44]} 1/2-1/2


[Site "https://www.chess.com"]

[Event "Titled Tuesday Blitz March 14 Early 2023"]
[White "Agasarov, Benik"]
[Black "Timofeev, Artyom"]
[WhiteFideId "13314823"]
[BlackFideId "4140419"]
[WhiteElo "2179"]
[BlackElo "2586"]
[Result "1-0"]
[Round "09"]
[TimeControl "180+2"]
[Date "2023.03.14"]
[WhiteClock "0:00:23"]
[BlackClock "0:00:42"]

1. d4 {[%clk 0:03:00]}  Nf6 {[%clk 0:02:58]} 2. c4 {[%clk 0:03:01]}  g6 {[%clk 0:02:58]} 3. Nc3 {[%clk 0:03:00]}  d5 {[%clk 0:02:58]} 4. cxd5 {[%clk 0:03:00]}  Nxd5 {[%clk 0:02:57]} 5. e4 {[%clk 0:03:00]}  Nb6 {[%clk 0:02:57]} 6. Be3 {[%clk 0:02:53]}  Bg7 {[%clk 0:02:57]} 7. Nf3 {[%clk 0:02:51]}  Bg4 {[%clk 0:02:55]} 8. Be2 {[%clk 0:02:51]}  O-O {[%clk 0:02:54]} 9. O-O {[%clk 0:02:50]}  Nc6 {[%clk 0:02:54]} 10. d5 {[%clk 0:02:47]}  Bxf3 {[%clk 0:02:53]} 11. Bxf3 {[%clk 0:02:43]}  Ne5 {[%clk 0:02:53]} 12. Be2 {[%clk 0:02:37]}  Nec4 {[%clk 0:02:52]} 13. Bxb6 {[%clk 0:02:31]}  Nxb6 {[%clk 0:02:52]} 14. Qb3 {[%clk 0:02:22]}  c6 {[%clk 0:02:51]} 15. dxc6 {[%clk 0:02:18]}  bxc6 {[%clk 0:02:50]} 16. Rfd1 {[%clk 0:02:14]}  Qc7 {[%clk 0:02:50]} 17. Rac1 {[%clk 0:02:15]}  Rab8 {[%clk 0:02:49]} 18. Qc2 {[%clk 0:02:04]}  Qe5 {[%clk 0:02:45]} 19. b3 {[%clk 0:01:49]}  Rfd8 {[%clk 0:02:40]} 20. Nb1 {[%clk 0:01:43]}  Bh6 {[%clk 0:02:29]} 21. Rxd8+ {[%clk 0:01:41]}  Rxd8 {[%clk 0:02:28]} 22. Rd1 {[%clk 0:01:41]}  Rxd1+ {[%clk 0:02:20]} 23. Bxd1 {[%clk 0:01:42]}  Qd4 {[%clk 0:02:16]} 24. Kf1 {[%clk 0:01:27]}  c5 {[%clk 0:02:15]} 25. Be2 {[%clk 0:01:27]}  Nc8 {[%clk 0:02:02]} 26. Nc3 {[%clk 0:01:04]}  Nd6 {[%clk 0:02:00]} 27. g3 {[%clk 0:00:41]}  Bg7 {[%clk 0:01:33]} 28. Nb5 {[%clk 0:00:41]}  Qxe4 {[%clk 0:01:31]} 29. Qxe4 {[%clk 0:00:40]}  Nxe4 {[%clk 0:01:31]} 30. Nxa7 {[%clk 0:00:41]}  Nc3 {[%clk 0:01:31]} 31. a4 {[%clk 0:00:39]}  Bd4 {[%clk 0:00:53]} 32. Nc6 {[%clk 0:00:35]}  Kf8 {[%clk 0:00:53]} 33. a5 {[%clk 0:00:30]}  Nd5 {[%clk 0:00:50]} 34. a6 {[%clk 0:00:29]}  Nc7 {[%clk 0:00:50]} 35. a7 {[%clk 0:00:29]}  Bc3 {[%clk 0:00:47]} 36. Ba6 {[%clk 0:00:25]}  Ke8 {[%clk 0:00:42]} 37. Bb7 {[%clk 0:00:25]}  Kd7 {[%clk 0:00:43]} 38. Nb8+ {[%clk 0:00:22]}  Kd6 {[%clk 0:00:42]} 39. Na6 {[%clk 0:00:23]} 1-0


[Site "https://www.chess.com"]

[Event "Titled Tuesday Blitz March 14 Early 2023"]
[White "Ibarra Jerez, Jose Carlos"]
[Black "Dehtiarov, Roman"]
[WhiteFideId "2226332"]
[BlackFideId "14186640"]
[WhiteElo "2638"]
[BlackElo "2162"]
[Result "1/2-1/2"]
[Round "09"]
[TimeControl "180+2"]
[Date "2023.03.14"]
[WhiteClock "0:00:06"]
[BlackClock "0:00:12"]

1. e3 {[%clk 0:03:00]}  e5 {[%clk 0:02:58]} 2. Ke2 {[%clk 0:03:01]}  Nc6 {[%clk 0:02:58]} 3. f3 {[%clk 0:03:02]}  d5 {[%clk 0:02:57]} 4. Kf2 {[%clk 0:03:03]}  f5 {[%clk 0:02:54]} 5. d4 {[%clk 0:03:03]}  e4 {[%clk 0:02:54]} 6. c4 {[%clk 0:03:01]}  Nf6 {[%clk 0:02:51]} 7. Nc3 {[%clk 0:03:00]}  Be6 {[%clk 0:02:50]} 8. Nh3 {[%clk 0:02:58]}  Ne7 {[%clk 0:02:43]} 9. Nf4 {[%clk 0:02:55]}  Bf7 {[%clk 0:02:43]} 10. Qb3 {[%clk 0:02:52]}  g5 {[%clk 0:02:11]} 11. Nfxd5 {[%clk 0:02:48]}  Nexd5 {[%clk 0:02:10]} 12. cxd5 {[%clk 0:02:49]}  Nxd5 {[%clk 0:02:08]} 13. Bc4 {[%clk 0:02:41]}  c6 {[%clk 0:02:01]} 14. Qxb7 {[%clk 0:02:40]}  Qc8 {[%clk 0:01:34]} 15. Qxc8+ {[%clk 0:02:32]}  Rxc8 {[%clk 0:01:35]} 16. fxe4 {[%clk 0:02:33]}  Nxc3 {[%clk 0:01:32]} 17. Bxf7+ {[%clk 0:02:31]}  Kxf7 {[%clk 0:01:33]} 18. bxc3 {[%clk 0:02:31]}  fxe4 {[%clk 0:01:33]} 19. Rb1 {[%clk 0:02:31]}  Kg6 {[%clk 0:01:31]} 20. Rb7 {[%clk 0:02:24]}  Bd6 {[%clk 0:01:30]} 21. Ke2 {[%clk 0:02:17]}  Rb8 {[%clk 0:01:24]} 22. Rd7 {[%clk 0:02:10]}  Rhd8 {[%clk 0:01:20]} 23. Rxd8 {[%clk 0:02:00]}  Rxd8 {[%clk 0:01:21]} 24. c4 {[%clk 0:01:39]}  Rb8 {[%clk 0:01:16]} 25. Kd2 {[%clk 0:01:31]}  Bb4+ {[%clk 0:01:14]} 26. Ke2 {[%clk 0:01:27]}  Bd6 {[%clk 0:01:09]} 27. h3 {[%clk 0:01:21]}  Rb1 {[%clk 0:01:06]} 28. Rd1 {[%clk 0:01:20]}  Bb4 {[%clk 0:01:00]} 29. a3 {[%clk 0:01:14]}  Ba5 {[%clk 0:00:57]} 30. d5 {[%clk 0:01:11]}  cxd5 {[%clk 0:00:57]} 31. cxd5 {[%clk 0:00:53]}  Kf7 {[%clk 0:00:57]} 32. d6 {[%clk 0:00:53]}  Ke8 {[%clk 0:00:57]} 33. d7+ {[%clk 0:00:53]}  Kd8 {[%clk 0:00:57]} 34. Bd2 {[%clk 0:00:54]}  Rb2 {[%clk 0:00:51]} 35. Ke1 {[%clk 0:00:51]}  Bxd2+ {[%clk 0:00:48]} 36. Rxd2 {[%clk 0:00:52]}  Rb3 {[%clk 0:00:48]} 37. Kf2 {[%clk 0:00:49]}  Rxa3 {[%clk 0:00:48]} 38. Rd4 {[%clk 0:00:48]}  h6 {[%clk 0:00:47]} 39. Rd6 {[%clk 0:00:40]}  h5 {[%clk 0:00:39]} 40. Rd5 {[%clk 0:00:37]}  Ra2+ {[%clk 0:00:37]} 41. Kg3 {[%clk 0:00:36]}  h4+ {[%clk 0:00:36]} 42. Kh2 {[%clk 0:00:36]}  Re2 {[%clk 0:00:36]} 43. Rxg5 {[%clk 0:00:33]}  Rxe3 {[%clk 0:00:37]} 44. Rg4 {[%clk 0:00:31]}  a5 {[%clk 0:00:36]} 45. Rg8+ {[%clk 0:00:21]}  Kxd7 {[%clk 0:00:36]} 46. Ra8 {[%clk 0:00:21]}  Ra3 {[%clk 0:00:36]} 47. Rh8 {[%clk 0:00:19]}  e3 {[%clk 0:00:31]} 48. Rxh4 {[%clk 0:00:19]}  Kd6 {[%clk 0:00:29]} 49. Kg3 {[%clk 0:00:18]}  e2+ {[%clk 0:00:18]} 50. Kf2 {[%clk 0:00:18]}  Re3 {[%clk 0:00:17]} 51. Ke1 {[%clk 0:00:18]}  Kc5 {[%clk 0:00:18]} 52. Rh8 {[%clk 0:00:11]}  a4 {[%clk 0:00:17]} 53. Ra8 {[%clk 0:00:10]}  Kb4 {[%clk 0:00:16]} 54. h4 {[%clk 0:00:11]}  a3 {[%clk 0:00:15]} 55. h5 {[%clk 0:00:12]}  Re5 {[%clk 0:00:14]} 56. g4 {[%clk 0:00:07]}  Ra5 {[%clk 0:00:11]} 57. Rb8+ {[%clk 0:00:04]}  Ka4 {[%clk 0:00:11]} 58. Rb1 {[%clk 0:00:04]}  Rg5 {[%clk 0:00:10]} 59. Kxe2 {[%clk 0:00:03]}  Rxg4 {[%clk 0:00:11]} 60. Rb8 {[%clk 0:00:02]}  Rh4 {[%clk 0:00:11]} 61. Ra8+ {[%clk 0:00:03]}  Kb3 {[%clk 0:00:11]} 62. Kd3 {[%clk 0:00:03]}  Rxh5 {[%clk 0:00:11]} 63. Rb8+ {[%clk 0:00:03]}  Ka2 {[%clk 0:00:11]} 64. Kc2 {[%clk 0:00:03]}  Rc5+ {[%clk 0:00:11]} 65. Kd2 {[%clk 0:00:04]}  Rc6 {[%clk 0:00:11]} 66. Rb7 {[%clk 0:00:04]}  Rc5 {[%clk 0:00:11]} 67. Rb8 {[%clk 0:00:04]}  Rc4 {[%clk 0:00:12]} 68. Rb5 {[%clk 0:00:05]}  Ka1 {[%clk 0:00:11]} 69. Rb3 {[%clk 0:00:05]}  Ka2 {[%clk 0:00:11]} 70. Rb8 {[%clk 0:00:05]}  Rh4 {[%clk 0:00:12]} 71. Kc2 {[%clk 0:00:05]}  Rh2+ {[%clk 0:00:12]} 72. Kc1 {[%clk 0:00:05]}  Rb2 {[%clk 0:00:12]} 73. Ra8 {[%clk 0:00:05]}  Rb6 {[%clk 0:00:12]} 74. Kc2 {[%clk 0:00:05]}  Rc6+ {[%clk 0:00:12]} 75. Kd2 {[%clk 0:00:05]}  Rc5 {[%clk 0:00:12]} 76. Rb8 {[%clk 0:00:06]} 1/2-1/2


[Site "https://www.chess.com"]